{"text_format":"1","workbook":"xlsx","n_sheets":1,"sheets":["ورقة1"],"not_rendered":{"charts":0,"images":0,"macros":1,"external_links":0,"defined_names":0,"comments":0,"pivot_tables":0},"unopened":[],"bounds":{"document_bytes":16777216,"sheet_cells":100000,"rows_first":2000,"rows_last":500,"rows_between":2000,"halvings":0,"cell_chars":16384,"cell_head_chars":4096},"cells_cut":0,"cells_raw":0,"read":"whole","date_system":"1900"}

{"sheet":"ورقة1","index":0,"n_rows":30,"n_cols":19,"rows_kept":30,"cut":false,"hidden":false,"merged":[]}
[]
[]
[]
[]
[]
[]
[]
[]
[]
[]
[]
[]
[]
[]
[]
[null,null,null,null,null,null,null,null,null,null,"عدد السنين ","عدد الشهور","عدد الأيام",null,null,null,null,null,"تاريخ اليوم"]
[null,null,null,null,null,null,null,null,null,"1436/09/11",{"$f":"ContDate($J17,$S$17,\"Y\")","v":3},{"$f":"ContDate($J17,$S$17,\"m\")","v":8},{"$f":"ContDate($J17,$S$17,\"d\")","v":25},null,null,null,null,null,"1440/06/06"]
[null,null,null,null,null,null,null,null,null,"1435/05/15",{"$f":"ContDate($J18,$S$17,\"Y\")","v":5},{"$f":"ContDate($J18,$S$17,\"m\")","v":1},{"$f":"ContDate($J18,$S$17,\"d\")","v":21}]
[null,null,null,null,null,null,null,null,null,"1422/10/16",17,7,20]
[null,null,null,null,null,null,null,null,null,"1433/05/11",7,1,25]
[null,null,null,null,null,null,null,null,null,"1420/06/03",20,0,3]
[null,null,null,null,null,null,null,null,null,"1431/05/11",9,1,25]
[null,null,null,null,null,null,null,null,null,"1419/05/05",21,1,1]
[null,null,null,null,null,null,null,null,null,"1424/05/06",16,1,0]
[null,null,null,null,null,null,null,null,null,"1420/09/02",19,9,4]
[null,null,null,null,null,null,null,null,null,"1430/12/11",9,5,25]
[null,null,null,null,null,null,null,null,null,"1421/04/22",19,2,14]
[null,null,null,null,null,null,null,null,null,"1436/05/20",4,1,16]
[null,null,null,null,null,null,null,null,null,"1432/05/11",8,1,25]
[null,null,null,null,null,null,null,null,null,"1436/05/24",4,1,12]